Cogmind - Beta 10.2 @@@ ROGUE MODE // 2021.09.13 @ 20:19:21 Player: Anemone Result: Self-destructed Performance ------------- Evolutions (1) 500 Regions Visited (3) 600 Robots Destroyed (21) 105 Value Destroyed (506) 506 Prototype IDs (0) 0 Alien Tech Used (0) 0 Bonus (0) 0 TOTAL SCORE: 1711 Bonus ------- None Cogmind --------- Core Integrity 318/400 Matter 265/300 Energy 100/100 System Corruption 0% Temperature Cool (0) Movement Treading (160) Location -9/Materials Parts ------- > --- POWER (1) -------- (None) > --- PROPULSION (3) --- Light Treads Light Treads > --- UTILITY (3) ------ Small Storage Unit Large Storage Unit Large Storage Unit > --- WEAPON (2) ------- Grenade Launcher > --- INVENTORY (18) --- Ion Engine Light Ion Engine Wheel Medium Storage Unit Medium Matter Pod (100) Grenade Launcher Peak State ------------ > --- POWER ------------ Ion Engine > --- PROPULSION ------- Light Treads Aluminum Leg Aluminum Leg > --- UTILITY ---------- Small Storage Unit Large Storage Unit > --- WEAPON ----------- Heavy EM Pulse Gun Light Assault Rifle > --- INVENTORY -------- Ion Engine Light Ion Engine Light Treads Light Treads Wheel Medium Storage Unit Large Storage Unit Medium Matter Pod Grenade Launcher Grenade Launcher [Rating: 10] Favorites ----------- Power Ion Engine Engine Ion Engine Propulsion Aluminum Leg Treads Light Treads Leg Aluminum Leg Utility Small Storage Unit Storage Small Storage Unit Weapon Assault Rifle Energy Gun Small Laser Ballistic Gun Assault Rifle Launcher Grenade Launcher Build | -11 -10 -10 -9 ------- Run | Scr Mat Min Mat Slots Evolved 2 | . . . 2 Power . | . . . . Propulsion 1 | . . . 1 Utility 1 | . . . 1 Weapon . | . . . . Parts Attached 14 | . 5 2 7 Power 1 | . 1 . . Engine 1 | . 1 . . Core . | . . . . Reactor . | . . . . Propulsion 4 | . . 1 3 Treads 3 | . . . 3 Leg 1 | . . 1 . Wheel . | . . . . Hover . | . . . . Flight . | . . . . Utility 3 | . 2 . 1 Device . | . . . . Storage 3 | . 2 . 1 Processor . | . . . . Hackware . | . . . . Protection . | . . . . Artifact . | . . . . Weapon 6 | . 2 1 3 Energy Gun 3 | . 1 . 2 Energy Cannon . | . . . . Ballistic Gun 1 | . . 1 . Ballistic Cannon . | . . . . Launcher 2 | . 1 . 1 Special Weapon . | . . . . Impact Weapon . | . . . . Slashing Weapon . | . . . . Piercing Weapon . | . . . . Special Melee Weapon . | . . . . Unidentified Prototypes . | . . . . Parts Lost 8 | . . 1 7 Power 1 | . . . 1 Propulsion 3 | . . . 3 Utility . | . . . . Weapon 4 | . . 1 3 Highest Loss Streak 4 | . . 1 4 Average Slot Usage (%) 94 | . 99 100 80 Engine 12 | . 14 14 10 Treads 3 | . . . 12 Leg 23 | . 28 28 12 Storage 27 | . 27 28 26 Energy Gun 10 | . 12 12 4 Ballistic Gun 14 | . 14 15 15 Naked Turns . | . . . . Heaviest Build 43 | 10 28 28 43 Greatest Support 40 | 20 20 20 40 Greatest Overweight (x) 1 | . 1 1 1 Average Overweight (x) . | . . 1 . Largest Inventory Capacity 18 | . 12 12 18 Average Capacity 11 | . 8 12 14 Most Carried 11 | . 10 11 11 Average Carried 9 | . 8 10 9 Final Capacity 18 | 6 12 12 18 Final Carried 10 | 6 10 10 6 Class Distribution -------------------- 100% | Mutant Dominant Class ---------------- Mutant | -10/Materials Mutant | -10/Mines Mutant | -9/Materials Resources | -11 -10 -10 -9 ----------- Run | Scr Mat Min Mat Matter Collected 592 | 196 216 104 76 Remotely . | . . . . Salvage Created 629 | . 258 137 234 Parts 48 | . 22 10 16 Haulers Intercepted 1 | . 1 . . Recyclers Shooed 2 | . 2 . . Parts Field Recycled . | . . . . Retrieved Matter . | . . . . Parts Self-Destructed . | . . . . Prevented . | . . . . Kills | -11 -10 -10 -9 ------- Run | Scr Mat Min Mat Combat Hostiles Destroyed 17 | . 7 5 5 Guns 13 | . 5 5 3 AOE 4 | . 2 . 2 Classes Destroyed 7 | . 4 . 3 Worker 1 | . . . 1 Hauler 1 | . 1 . . Watcher 2 | . 2 . . Swarmer 6 | . 3 3 . Grunt 9 | . 4 2 3 Duelist 1 | . . . 1 Sentry 1 | . . . 1 Best Kill Streak 5 | . 5 2 3 Combat Bots Only 3 | . 3 2 2 Max Kills in Single Turn 3 | . 2 1 3 Gunslinging . | . . . . Exploded 2 | . 2 . 2 Melee . | . . . . Uniques/NPCs Destroyed . | . . . . Combat | -11 -10 -10 -9 -------- Run | Scr Mat Min Mat Damage Taken 1321 | . 244 168 909 Core 182 | . 84 16 82 Absorbed by Shields . | . . . . Core Remaining (%) 80 | 100 . 60 . Volleys Fired 89 | . 33 15 41 Largest 2 | . 2 2 2 Hottest 70 | . 60 60 70 Shots Fired 138 | . 58 28 52 Gun 134 | . 57 28 49 Cannon . | . . . . Launcher 4 | . 1 . 3 Special . | . . . . Kinetic 78 | . 32 15 31 Thermal 50 | . 25 13 12 Explosive 4 | . 1 . 3 Electromagnetic 6 | . . . 6 Robot Hit Streak 14 | . 9 14 14 Robot Miss Streak 5 | . 3 5 2 Penetration Max . | . . . . Secondary Targets 2 | . 1 1 . Max Gunslinging Chain 1 | . 1 1 . Shots Hit Robots 96 | . 37 18 41 Core Hits 39 | . 18 8 13 Critical Hits . | . . . . Critical Kills . | . . . . Critical Parts Destroyed . | . . . . Melee Attacks . | . . . . Impact . | . . . . Slashing . | . . . . Piercing . | . . . . Sneak Attacks . | . . . . Combat Hostiles . | . . . . Follow-up Attacks . | . . . . Damage Inflicted 1369 | . 613 176 580 Guns 1028 | . 453 176 399 Cannons . | . . . . Explosions 341 | . 160 . 181 Melee . | . . . . Ramming . | . . . . Kinetic 576 | . 261 99 216 Thermal 382 | . 192 77 113 Explosive 341 | . 160 . 181 Electromagnetic 70 | . . . 70 Impact . | . . . . Slashing . | . . . . Piercing . | . . . . Highest Corruption . | . . . . Average Corruption . | . . . . Corruption Purged . | . . . . Overload Shots . | . . . . Overflow Damage 10 | . 6 . 4 Projectiles . | . . . . Explosions 10 | . 6 . 4 Melee . | . . . . Knockbacks . | . . . . Impact . | . . . . Kinetic . | . . . . Secondary . | . . . . Self-Inflicted Damage 70 | . 21 . 49 Shots 4 | . 1 . 3 Rammed . | . . . . Targets Rammed . | . . . . Kicked . | . . . . Crushed . | . . . . Highest Temperature 51 | . 48 51 36 Average Temperature 19 | . 24 26 12 Received Heat Transfer 378 | . 84 57 237 Siege Activations . | . . . . Robots Corrupted . | . . . . Combat Hostiles . | . . . . Parts Fried . | . . . . Impact Corruptions . | . . . . Robots Melted . | . . . . Combat Hostiles . | . . . . Parts Melted 1 | . . . 1 Heat Transferred 875 | . 450 175 250 Parts Sabotaged . | . . . . Parts Stolen . | . . . . Parts Stripped . | . . . . Power Chain Reactions . | . . . . Missiles Intercepted . | . . . . Alert | -11 -10 -10 -9 ------- Run | Scr Mat Min Mat Peak Influence 280 | . 280 159 128 Initial 109 | . . 109 23 Average 106 | . 151 105 64 Maximum Alert Level 1 | . 1 . . Low Security (%) 89 | . 61 100 100 Level 1 10 | . 38 . . Level 2 . | . . . . Level 3 . | . . . . Level 4 . | . . . . Level 5 . | . . . . High Security . | . . . . Max Security . | . . . . Squads Dispatched 4 | . 3 . 1 Investigation 1 | . 1 . . Extermination . | . . . . Reinforcement 3 | . 2 . 1 Assault . | . . . . Garrison . | . . . . Intercept . | . . . . Construction Impeded . | . . . . Haulers Reinforced . | . . . . Stealth | -11 -10 -10 -9 --------- Run | Scr Mat Min Mat Distress Signals 1 | . . . 1 Communications Jammed . | . . . . Distress Signals . | . . . . Times Spotted 27 | . 13 5 9 Peak Tracking Total 4 | . 4 2 4 Tactical Retreats 1 | . . . 1 Traps | -11 -10 -10 -9 ------- Run | Scr Mat Min Mat Traps Triggered 1 | . 1 . . Indirectly . | . . . . Trap Hack Attempts . | . . . . Triggered . | . . . . Disarmed . | . . . . Reprogrammed . | . . . . Reused . | . . . . Traps Extracted . | . . . . Installed . | . . . . Triggered 1 | . . 1 . Machines | -11 -10 -10 -9 ---------- Run | Scr Mat Min Mat Machines Disabled . | . . . . Max in Single Turn . | . . . . Machines Sabotaged . | . . . . Garrisons Compromised . | . . . . Overloaded Fab Kills . | . . . . Fab Network Shutdowns . | . . . . Hacking | -11 -10 -10 -9 --------- Run | Scr Mat Min Mat Machines Accessed 5 | . 3 . 2 Terminals 4 | . 3 . 1 Fabricators . | . . . . Repair Stations . | . . . . Recycling Units 1 | . . . 1 Scanalyzers . | . . . . Garrison Access . | . . . . Total Hacks 10 | . 6 . 4 Successful 4 | . 2 . 2 Failed 6 | . 4 . 2 Catastrophic . | . . . . Database Lockouts . | . . . . Manual 7 | . 6 . 1 Terminals 8 | . 6 . 2 Fabricators . | . . . . Repair Stations . | . . . . Recycling Units 2 | . . . 2 Scanalyzers . | . . . . Garrison Access . | . . . . Terminal Hacks . | . . . . Fabricator Hacks . | . . . . Repair Station Hacks . | . . . . Recycling Unit Hacks 1 | . . . 1 Retrieve Components 1 | . . . 1 Scanalyzer . | . . . . Garrison Access Hacks . | . . . . Unauthorized Hacks 3 | . 2 . 1 Terminals 3 | . 2 . 1 Botnet 3 | . 2 . 1 Fabricators . | . . . . Repair Stations . | . . . . Recycling Units . | . . . . Scanalyzers . | . . . . Garrison Access . | . . . . Data Cores Recovered . | . . . . Used . | . . . . Hacking Detections 4 | . 3 . 1 Full Trace Events . | . . . . Feedback Events . | . . . . Feedback Blocked . | . . . . Robot Schematics Acquired . | . . . . Robots Built . | . . . . Matter . | . . . . Time . | . . . . Total Robot Build Rating . | . . . . Part Schematics Acquired . | . . . . Parts Built . | . . . . Matter . | . . . . Time . | . . . . Total Part Build Rating . | . . . . Parts Repaired . | . . . . Time . | . . . . Parts Recycled . | . . . . Recycled Matter . | . . . . Retrieved Matter . | . . . . Retrieved Components 2 | . . . 2 Parts Scanalyzed . | . . . . Part Schematics Acquired . | . . . . Parts Damaged . | . . . . Bothacking | -11 -10 -10 -9 ------------ Run | Scr Mat Min Mat Used RIF Installer . | . . . . Robots Hacked . | . . . . Non-combat . | . . . . Combat . | . . . . Robot Hacks Applied . | . . . . Relay Couplers Released . | . . . . Robots Rewired . | . . . . Allies Hacked . | . . . . Hacks Repelled . | . . . . Allies | -11 -10 -10 -9 -------- Run | Scr Mat Min Mat Total Allies . | . . . . Largest Group . | . . . . Highest-Rated Group . | . . . . Highest-Rated Ally . | . . . . Total Orders . | . . . . Ally Attacks . | . . . . Total Damage . | . . . . Kills . | . . . . Allies Corrupted . | . . . . Allies Melted . | . . . . Intel | -11 -10 -10 -9 ------- Run | Scr Mat Min Mat Robot Analysis Total . | . . . . Derelict Logs Recovered . | . . . . Drone Launches . | . . . . Drone Recoveries . | . . . . Exploration | -11 -10 -10 -9 ------------- Run | Scr Mat Min Mat Turns Passed 1330 | . 368 593 369 Spaces Moved 694 | 1 185 358 150 Core . | . . . . Treads 49 | . . . 49 Legs 645 | 1 185 358 101 Wheels . | . . . . Hover . | . . . . Flight . | . . . . Fastest Speed 120 | 120 120 150 150 Average Speed 145 | 120 124 150 159 Slowest Speed 180 | 120 150 150 180 Overloaded Moves . | . . . . Propulsion Burnouts . | . . . . Robots Hopped . | . . . . Cave-ins Triggered . | . . . . Exploration Rate (%) 31 | 2 41 70 12 Regions Visited 3 Branch Regions 1 Pre-discovered Areas . | . . . . Known Exits Taken . | . . . . Unknown Exits Taken 3 | 1 1 1 . Scrap Searched 1 | . . 1 . Spaces Dug . | . . . . Terrain Destroyed 24 | . 4 . 20 Melee . | . . . . Projectile . | . . . . AOE 24 | . 4 . 20 Terrain Rammed . | . . . . Walls Destroyed . | . . . . Machines Disabled . | . . . . Actions | -11 -10 -10 -9 --------- Run | Scr Mat Min Mat Total 883 | . 265 386 232 Wait 77 | . 35 10 32 Move 691 | . 184 357 150 Hop . | . . . . Pick Up 8 | . 5 1 2 Fast Attach 2 | . 1 . 1 Attach 7 | . . 1 6 Detach . | . . . . Swap 5 | . 4 1 . Drop 4 | . 3 1 . Fire 89 | . 33 15 41 Melee . | . . . . Ram . | . . . . Kick . | . . . . Crush . | . . . . Escape Stasis . | . . . . Rewire . | . . . . Trap . | . . . . Miscellaneous . | . . . . Route ------- -11/Scrapyard -10/Materials -10/Mines (discovered 2 exits: *Mat x2) -9/Materials History --------- Turn | Location | Event 1 | -11/Scrapyard | Discovered new exit (range 0) 1 | -11/Scrapyard | Entered Materials 312 | -10/Materials | Build established: Mutant 342 | -10/Materials | Discovered new exit (range 12) 369 | -10/Materials | Entered Mines 389 | -10/Mines | Discovered new exit (range 12) 495 | -10/Mines | Discovered new exit (range 10) 962 | -10/Mines | Entered Materials 962 | -9/Materials | Evolved 2 slots: Propulsion x1, Utility x1 1222 | -9/Materials | Lost 4 parts (3n1w) 1331 | -9/Materials | Self-destructed Last Messages --------------- 01205_ Acquired Sml. Laser. 01208_ Acquired 2 matter. 01210_ Acquired 8 matter. 01228_ R-06 Scavenger collects Imp. Aluminum Leg. 01269_ O-16 Technician: "IFF HANDSHAKE FAILED. SECURING TERMINAL." 01270_ O-16 Technician sends out distress signal. 01272_ T-07 Excavator is excavating. 01276_ ALERT: Hostiles spotted, dispatching reinforcements to Terminal M005. 01299_ Lgt. Assault Rifle destroyed. 01304_ Ion Engine destroyed. 01306_ Y-45 Defender destroyed. 01310_ R-06 Scavenger collects Lgt. Armor Plating. 01313_ K-01 Serf collects debris. 01322_ Sml. Laser melted. 01322_ G-34 Mercenary destroyed. 01322_ K-01 Serf destroyed. 01323_ Sml. Laser destroyed. 01325_ Destroyed Sml. Laser. Map ----- +----------------------------------------------------+ | ??????????????????????????????????????# #???#### | | ??????????????????????????????????????# #??????? | | ??????????????????????????????????????# #??????? | | ??????????????????????????????????????# ####### | | ??????????????????????????????????????# % | | ????????????????????????############### | | ????????????????????????# % | | ????????????????????????# ##########+######## | | ????????????????????????# #?????# #???? | | ????????????????????????# #?????# """ #???? | | ????????????????????????# #?????# """ ##### | | ????????????????????????## ##?????# """ + | | ?????????????????????????# #??????# ##### | | ?????????????????????????# #??????# = #???? | | ?????????????????????????# #??????# "Y" #???? | | ?????????????????????????# #??????# """ #???? | | ?????????????????????????# #??????# #???? | | ?????????????????????????# #??????##########???? | | ?????????????????????????# #???????????????????? | | ?????????????????????????# #???????????????????? | | ?????????????????????????#a #???????????????????? | | ????????????????????????## ##??????????????????? | | ????????????????????????# #??????????????????? | | ????????????????????????# #??????????????????? | | ?????????????????????#### g ##??????????????????? | | ??????????####+####### @ #??????????????????? | | ????????? =%% #??????????????????? | | ????????? a %! #??????????????????? | | ????????? %*= #??????????????????? | | ???????????###u##### = #??????????????????? | | ???????????????????## ## ##??????????????????? | | ????????????????????#######?##???????????????????? | | ?????????????????????????????????????????????????? | | ?????????????????????????????????????????????????? | | ?????????????????????????????????????????????????? | | ?????????????????????????????????????????????????? | | ?????????????????????????????????????????????????? | | ?????????????????????????????????????????????????? | | ?????????????????????????????????????????????????? | | ?????????????????????????????????????????????????? | | ?????????????????????????????????????????????????? | | | | | | | | | | | | | | | | | | | +----------------------------------------------------+ Best States ------------- Heat Dissipation 28 Energy Generation 10 Energy Capacity 250 Matter Stores 300 Matter Capacity 300 Sight Range 16 Terrain Scan Density 10 Evasion (%) 40 Recoil Reduction 2 Item Schematics ----------------- None Robot Schematics ------------------ None Fabricated ------------ Nothing Alien Tech Used ----------------- None Achievements -------------- None Challenges ------------ None Game ------ Seed SpreadCoolantInjector Manual? 0 Play Time 00:17:10 Cumulative 47.2 hours Start 2021.09.13 @ 15:12:56 End 2021.09.13 @ 20:19:21 Sessions 3 Manual Loads 0 Difficulty Rogue Special Mode None Game No. 41 Rogue 41 Adventurer 0 Explorer 0 Win Type - Total 1 Types 1/0/0/0/0/0/0/0/0 Lore% 34 Gallery% 41 Achievement% 35 Wizard Run 0 Options --------- ASCII 0 Keyboard 0 Movement Mouse Keybinds 0 Fullscreen 1 Font 32/SmallcapsGlow Map View 63x52 Tactical HUD 1 Map Filters NONE Filters NONE Steam 1 RUN: 2a5bc95e-8930-436e-966f-570955360f4a